[Event "Championnat du monde jeunes U12F"]
[Date "2024.11.25"]
[White "Bogomolnikova, Zlata"]
[Black "Zavivaeva, Kristina"]
[WhiteElo "1628"]
[BlackElo "1775"]
[Round "10.13"]
[Result "1-0"]
[TimeControl "5400+30"]

1. d4 {[%clk 1:30:56]} 1... Nf6 {[%clk 1:30:54]} 2. c4 {[%clk 1:31:17]} 2... c5
{[%clk 1:31:19]} 3. d5 {[%clk 1:31:37]} 3... b5 {[%clk 1:31:43]} 4. Qc2 {[%clk
1:31:59]} 4... bxc4 {[%clk 1:30:49]} 5. e4 {[%clk 1:32:17]} 5... d6 {[%clk
1:30:28]} 6. Bxc4 {[%clk 1:30:29]} 6... g6 {[%clk 1:30:06]} 7. Nf3 {[%clk
1:25:39]} 7... Bg7 {[%clk 1:30:05]} 8. h3 {[%clk 1:25:11]} 8... O-O {[%clk
1:29:25]} 9. O-O {[%clk 1:24:05]} 9... Nbd7 {[%clk 1:28:30]} 10. Nc3 {[%clk
1:22:49]} 10... Qc7 {[%clk 1:26:47]} 11. Bf4 {[%clk 1:18:41]} 11... Bb7 {[%clk
1:23:07]} 12. Rfe1 {[%clk 1:16:48]} 12... Nb6 {[%clk 1:21:49]} 13. Bf1 {[%clk
1:13:55]} 13... a6 {[%clk 1:19:07]} 14. Rad1 {[%clk 1:10:10]} 14... Rad8 {[%clk
1:18:25]} 15. Kh1 {[%clk 1:05:36]} 15... Rfe8 {[%clk 1:17:27]} 16. b3 {[%clk
0:59:13]} 16... h6 {[%clk 1:16:15]} 17. Nb1 {[%clk 0:58:13]} 17... e6 {[%clk
1:03:53]} 18. dxe6 {[%clk 0:50:24]} 18... Rxe6 {[%clk 1:02:45]} 19. Nfd2 {[%clk
0:50:03]} 19... Qe7 {[%clk 0:59:00]} 20. f3 {[%clk 0:45:17]} 20... d5 {[%clk
0:57:21]} 21. Bd3 {[%clk 0:41:26]} 21... dxe4 {[%clk 0:52:56]} 22. Nxe4 {[%clk
0:38:25]} 22... Nxe4 {[%clk 0:50:33]} 23. fxe4 {[%clk 0:37:21]} 23... Nd5 {[%clk
0:46:17]} 24. Bd2 {[%clk 0:34:43]} 24... Nf6 {[%clk 0:39:51]} 25. Nc3 {[%clk
0:33:24]} 25... Re8 {[%clk 0:37:13]} 26. Bc4 {[%clk 0:31:04]} 26... Bxe4 {[%clk
0:31:21]} 27. Qc1 {[%clk 0:30:36]} 27... Re5 {[%clk 0:29:58]} 28. Bxa6 {[%clk
0:24:07]} 28... Qe6 {[%clk 0:26:51]} 29. Nxe4 {[%clk 0:23:31]} 29... Nxe4 {[%clk
0:26:37]} 30. Bc4 {[%clk 0:21:28]} 30... Qd6 {[%clk 0:20:36]} 31. Be3 {[%clk
0:17:11]} 31... Qe7 {[%clk 0:13:13]} 32. Kg1 {[%clk 0:15:23]} 32... g5 {[%clk
0:11:04]} 33. Bd3 {[%clk 0:09:09]} 33... Nc3 {[%clk 0:08:07]} 34. Bf2 {[%clk
0:04:21]} 34... Nxd1 {[%clk 0:08:27]} 35. Rxd1 {[%clk 0:04:46]} 35... Rd8 {[%clk
0:07:30]} 36. Qc2 {[%clk 0:03:28]} 36... Kh8 {[%clk 0:07:34]} 37. Rf1 {[%clk
0:03:03]} 37... Red5 {[%clk 0:06:20]} 38. Bc4 {[%clk 0:03:17]} 38... Rd2 {[%clk
0:04:36]} 39. Qf5 {[%clk 0:03:02]} 39... Qb7 {[%clk 0:03:10]} 40. Re1 {[%clk
0:00:34]} 40... Bd4 {[%clk 0:01:31]} 41. Bxd4+ {[%clk 0:00:34]} 41... R2xd4
{[%clk 0:00:58]} 42. Qxc5 {[%clk 0:00:33]} 42... Rd2 {[%clk 0:00:50]} 43. Qe5+
{[%clk 0:00:45]} 43... Kg8 {[%clk 0:01:13]} 44. Re2 {[%clk 0:00:47]} 44... Qa7+
{[%clk 0:01:17]} 45. Kh2 {[%clk 0:00:49]} 45... Rd1 {[%clk 0:00:39]} 46. Qf6
{[%clk 0:00:33]} 46... Qg1+ {[%clk 0:00:35]} 47. Kg3 {[%clk 0:00:54]} 47... R1d7
{[%clk 0:00:32]} 48. Bxf7+ {[%clk 0:01:10]} 48... Rxf7 {[%clk 0:00:45]} 49.
Qxd8+ {[%clk 0:01:32]} 49... Kg7 {[%clk 0:01:00]} 50. Qd3 {[%clk 0:01:32]} 50...
h5 {[%clk 0:00:41]} 51. Qc3+ {[%clk 0:00:48]} 51... Kh7 {[%clk 0:00:58]} 52.
Qc2+ {[%clk 0:00:38]} 52... Kg7 {[%clk 0:01:14]} 53. Qc3+ {[%clk 0:00:49]} 53...
Kh7 {[%clk 0:01:36]} 54. Qe3 {[%clk 0:00:49]} 54... Qf1 {[%clk 0:01:34]} 55.
Qe4+ {[%clk 0:00:35]} 55... Kh6 {[%clk 0:01:34]} 56. Kh2 {[%clk 0:00:39]} 56...
h4 {[%clk 0:01:07]} 57. Qg4 {[%clk 0:00:39]} 57... Qc1 {[%clk 0:00:51]} 58. Re6+
{[%clk 0:00:42]} 58... Kg7 {[%clk 0:00:50]} 59. Qe4 {[%clk 0:00:42]} 59... Qc7+
{[%clk 0:00:32]} 60. Qe5+ {[%clk 0:01:06]} 60... Qxe5+ {[%clk 0:00:54]} 61. Rxe5
{[%clk 0:01:32]} 61... Kf6 {[%clk 0:01:12]} 62. Rc5 {[%clk 0:01:44]} 62... Ra7
{[%clk 0:01:24]} 63. a4 {[%clk 0:01:59]} 63... Rb7 {[%clk 0:01:27]} 64. Rb5
{[%clk 0:02:16]} 64... Ra7 {[%clk 0:01:39]} 65. a5 {[%clk 0:02:41]} 65... Kg6
{[%clk 0:01:49]} 66. b4 {[%clk 0:03:05]} 66... Kh5 {[%clk 0:01:56]} 67. Rb6
{[%clk 0:03:01]} 67... Ra8 {[%clk 0:01:25]} 68. a6 {[%clk 0:02:57]} 68... g4
{[%clk 0:01:35]} 69. hxg4+ {[%clk 0:03:12]} 69... Kxg4 {[%clk 0:01:47]} 70. b5
{[%clk 0:03:13]} 70... h3 {[%clk 0:02:03]} 71. gxh3+ {[%clk 0:03:38]} 71... Kh4
{[%clk 0:02:02]} 72. Rg6 {[%clk 0:03:14]} 72... Rc8 {[%clk 0:02:04]} 73. b6
{[%clk 0:03:17]} 73... Rc3 {[%clk 0:02:01]} 74. Rg4+ {[%clk 0:03:27]} 74... Kh5
{[%clk 0:02:29]} 75. b7 {[%clk 0:03:31]} 75... Rf3 {[%clk 0:02:07]} 76. b8=Q
{[%clk 0:03:38]} 76... Rf8 {[%clk 0:02:24]} 77. Qe5+ {[%clk 0:03:56]} 77... Kh6
{[%clk 0:02:39]} 78. Qg7+ {[%clk 0:04:21]} 78... Kh5 {[%clk 0:03:01]} 79. Qg5#
{[%clk 0:04:46]} 1-0

[Variant "Standard"]
[Site "Europe Echecs"]

[Event "Championnat du monde jeunes U12F"]
[Date "2024.11.25"]
[White "Ejsymont, Blanka"]
[Black "Sinkar, Anagha Aniket"]
[WhiteElo "1945"]
[BlackElo "1723"]
[Round "10.14"]
[Result "1-0"]
[TimeControl "5400+30"]

1. e4 {[%clk 1:30:58]} 1... c5 {[%clk 1:30:41]} 2. Nf3 {[%clk 1:31:20]} 2... Nc6
{[%clk 1:30:58]} 3. d4 {[%clk 1:31:39]} 3... cxd4 {[%clk 1:31:17]} 4. Nxd4
{[%clk 1:32:07]} 4... g6 {[%clk 1:31:32]} 5. c4 {[%clk 1:32:31]} 5... Bg7 {[%clk
1:31:22]} 6. Be3 {[%clk 1:32:53]} 6... Nf6 {[%clk 1:31:10]} 7. Nc3 {[%clk
1:33:17]} 7... d6 {[%clk 1:31:10]} 8. Be2 {[%clk 1:33:40]} 8... O-O {[%clk
1:30:38]} 9. O-O {[%clk 1:33:41]} 9... Bd7 {[%clk 1:30:02]} 10. h3 {[%clk
1:34:02]} 10... a6 {[%clk 1:29:28]} 11. Nf3 {[%clk 1:33:48]} 11... Rb8 {[%clk
1:26:02]} 12. a3 {[%clk 1:32:23]} 12... Qc7 {[%clk 1:23:47]} 13. Rc1 {[%clk
1:29:37]} 13... b6 {[%clk 1:18:03]} 14. b4 {[%clk 1:22:33]} 14... Qb7 {[%clk
1:15:20]} 15. Nd5 {[%clk 0:58:58]} 15... Nxd5 {[%clk 1:03:03]} 16. exd5 {[%clk
0:58:33]} 16... Nd8 {[%clk 0:59:52]} 17. Qd2 {[%clk 0:51:33]} 17... f6 {[%clk
0:50:45]} 18. Nd4 {[%clk 0:41:12]} 18... Re8 {[%clk 0:44:04]} 19. Nb3 {[%clk
0:38:31]} 19... e6 {[%clk 0:41:37]} 20. dxe6 {[%clk 0:37:23]} 20... Nxe6 {[%clk
0:41:56]} 21. Qxd6 {[%clk 0:31:06]} 21... Ba4 {[%clk 0:40:28]} 22. Bf3 {[%clk
0:29:31]} 22... Qf7 {[%clk 0:40:04]} 23. Nd4 {[%clk 0:25:20]} 23... Bf8 {[%clk
0:37:37]} 24. Qg3 {[%clk 0:24:08]} 24... Nxd4 {[%clk 0:37:11]} 25. Bxd4 {[%clk
0:24:35]} 25... Bd7 {[%clk 0:37:27]} 26. Rfe1 {[%clk 0:21:21]} 26... Be6 {[%clk
0:35:03]} 27. Rxe6 {[%clk 0:19:42]} 27... Rxe6 {[%clk 0:35:20]} 28. Qxb8 {[%clk
0:19:29]} 1-0

[Variant "Standard"]
[Site "Europe Echecs"]

[Event "Championnat du monde jeunes U12F"]
[Date "2024.11.25"]
[White "Bohatyrova, Mariia"]
[Black "Ahmed Mohamed, Zakaa"]
[WhiteElo "1722"]
[BlackElo "1866"]
[Round "10.15"]
[Result "0-1"]
[TimeControl "5400+30"]

1. e4 {[%clk 1:30:57]} 1... e5 {[%clk 1:30:52]} 2. Nf3 {[%clk 1:31:23]} 2... d6
{[%clk 1:31:15]} 3. d4 {[%clk 1:31:47]} 3... exd4 {[%clk 1:31:39]} 4. Qxd4
{[%clk 1:32:12]} 4... Nc6 {[%clk 1:31:37]} 5. Bb5 {[%clk 1:32:37]} 5... Bd7
{[%clk 1:31:49]} 6. Bxc6 {[%clk 1:33:02]} 6... Bxc6 {[%clk 1:31:51]} 7. Nc3
{[%clk 1:33:18]} 7... Nf6 {[%clk 1:31:59]} 8. Bg5 {[%clk 1:33:34]} 8... Be7
{[%clk 1:32:16]} 9. O-O-O {[%clk 1:33:52]} 9... O-O {[%clk 1:32:32]} 10. Rhe1
{[%clk 1:34:07]} 10... Qc8 {[%clk 1:09:12]} 11. h3 {[%clk 1:15:20]} 11... Rd8
{[%clk 1:02:55]} 12. Qe3 {[%clk 1:10:58]} 12... b5 {[%clk 0:52:30]} 13. Nd4
{[%clk 0:56:51]} 13... Qd7 {[%clk 0:45:46]} 14. Nf5 {[%clk 0:34:00]} 14... Re8
{[%clk 0:40:19]} 15. f3 {[%clk 0:28:06]} 15... b4 {[%clk 0:33:17]} 16. Ne2
{[%clk 0:24:54]} 16... Bd8 {[%clk 0:32:07]} 17. Ned4 {[%clk 0:19:00]} 17... a5
{[%clk 0:29:27]} 18. Qd2 {[%clk 0:16:45]} 18... Rb8 {[%clk 0:25:35]} 19. Bf4
{[%clk 0:02:51]} 19... Ba8 {[%clk 0:20:47]} 20. e5 {[%clk 0:01:37]} 20... dxe5
{[%clk 0:20:37]} 21. Rxe5 {[%clk 0:01:23]} 21... Rxe5 {[%clk 0:20:59]} 22. Bxe5
{[%clk 0:01:50]} 22... Qd5 {[%clk 0:19:41]} 23. Nb3 {[%clk 0:00:39]} 23... Qxe5
{[%clk 0:19:44]} 24. Qg5 {[%clk 0:00:36]} 24... Nd7 {[%clk 0:19:06]} 25. Qg4
{[%clk 0:00:33]} 25... Nb6 {[%clk 0:18:11]} 26. g3 Bf6 {[%clk 0:17:59]} 27. Nbd4
{[%clk 0:00:39]} 27... c5 {[%clk 0:18:06]} 28. f4 {[%clk 0:00:48]} 28... Qe4
{[%clk 0:16:57]} 29. Nf3 {[%clk 0:00:46]} 29... Qxf3 {[%clk 0:17:00]} 30. Qxf3
{[%clk 0:01:05]} 30... Bxf3 {[%clk 0:17:25]} 31. Rf1 {[%clk 0:01:06]} 31... Bg2
{[%clk 0:17:46]} 32. Re1 {[%clk 0:01:08]} 32... Bxh3 {[%clk 0:18:06]} 33. Nd6
{[%clk 0:01:07]} 33... h6 {[%clk 0:18:21]} 34. Ne4 {[%clk 0:01:08]} 34... Nd7
{[%clk 0:17:35]} 35. Rg1 {[%clk 0:00:37]} 35... Re8 {[%clk 0:17:52]} 36. Nf2
{[%clk 0:00:46]} 36... Be6 {[%clk 0:18:14]} 37. Re1 {[%clk 0:01:03]} 37... Kf8
{[%clk 0:18:36]} 38. Rd1 {[%clk 0:00:56]} 38... Bd4 {[%clk 0:18:57]} 39. Nd3
{[%clk 0:00:45]} 39... Bg4 {[%clk 0:19:16]} 40. Rf1 {[%clk 0:00:54]} 40... Be2
{[%clk 0:19:40]} 41. Rh1 {[%clk 0:00:54]} 41... Bxd3 {[%clk 0:20:04]} 0-1

[Variant "Standard"]
[Site "Europe Echecs"]

[Event "Championnat du monde jeunes U12F"]
[Date "2024.11.25"]
[White "Smirnova, Viktoria A"]
[Black "Abak, Tuana"]
[WhiteElo "1658"]
[BlackElo "1806"]
[Round "10.16"]
[Result "0-1"]
[TimeControl "5400+30"]

1. d4 {[%clk 1:30:58]} 1... d5 {[%clk 1:30:55]} 2. c4 {[%clk 1:31:20]} 2... c6
{[%clk 1:31:23]} 3. Nd2 {[%clk 1:31:39]} 3... Nf6 {[%clk 1:31:47]} 4. Ngf3
{[%clk 1:31:46]} 4... Bf5 {[%clk 1:31:59]} 5. Nh4 {[%clk 1:31:26]} 5... Bg6
{[%clk 1:30:01]} 6. Qb3 {[%clk 1:31:47]} 6... Qb6 {[%clk 1:29:33]} 7. Qh3 {[%clk
1:31:47]} 7... Na6 {[%clk 1:18:32]} 8. Nxg6 fxg6 {[%clk 1:19:00]} 9. c5 {[%clk
1:28:58]} 9... Qa5 {[%clk 1:07:46]} 10. Qc3 {[%clk 1:19:43]} 10... Qd8 {[%clk
1:07:02]} 11. e3 {[%clk 1:16:05]} 11... Nc7 {[%clk 1:07:27]} 12. Bd3 {[%clk
1:16:03]} 12... e6 {[%clk 1:07:38]} 13. Nf3 {[%clk 1:15:29]} 13... Be7 {[%clk
1:05:34]} 14. Ne5 {[%clk 1:15:34]} 14... Nd7 {[%clk 1:04:38]} 15. Nf3 {[%clk
1:14:48]} 15... O-O {[%clk 1:04:47]} 16. b4 {[%clk 1:00:06]} 16... Bf6 {[%clk
1:03:36]} 17. O-O {[%clk 0:48:37]} 17... Qe7 {[%clk 1:02:35]} 18. Ne5 {[%clk
0:46:07]} 18... Bxe5 {[%clk 0:40:27]} 19. dxe5 {[%clk 0:44:48]} 19... Nb5 {[%clk
0:37:54]} 20. Bxb5 {[%clk 0:43:12]} 20... cxb5 {[%clk 0:36:59]} 21. Bb2 {[%clk
0:37:34]} 21... Rfc8 {[%clk 0:27:57]} 22. Qd3 {[%clk 0:37:42]} 22... a6 {[%clk
0:26:11]} 23. Rac1 {[%clk 0:36:16]} 23... b6 {[%clk 0:25:34]} 24. cxb6 Nxb6
{[%clk 0:25:38]} 25. Bd4 {[%clk 0:27:15]} 25... Nc4 {[%clk 0:25:59]} 26. a3
{[%clk 0:21:08]} 26... a5 {[%clk 0:19:12]} 27. Bc5 {[%clk 0:20:28]} 27... Nxe5
{[%clk 0:16:52]} 28. Qxb5 {[%clk 0:20:14]} 28... Qd7 {[%clk 0:17:10]} 29. Qxd7
{[%clk 0:19:51]} 29... Nxd7 {[%clk 0:17:36]} 30. Bd6 {[%clk 0:20:02]} 30... a4
{[%clk 0:16:32]} 31. Rxc8+ {[%clk 0:19:14]} 31... Rxc8 {[%clk 0:17:01]} 32. b5
{[%clk 0:17:39]} 32... Nb6 {[%clk 0:15:06]} 33. Rb1 {[%clk 0:16:52]} 33... Rc3
{[%clk 0:09:41]} 34. g4 {[%clk 0:12:23]} 34... Kf7 {[%clk 0:06:57]} 35. Rd1
{[%clk 0:11:14]} 35... Rc4 {[%clk 0:05:26]} 36. Rd4 {[%clk 0:09:30]} 36... Rxd4
{[%clk 0:05:46]} 37. exd4 {[%clk 0:09:50]} 37... Nc4 {[%clk 0:05:33]} 38. Bc5
{[%clk 0:10:16]} 38... Ke8 {[%clk 0:05:47]} 39. Kf1 {[%clk 0:09:55]} 39... Kd7
{[%clk 0:06:02]} 40. Ke2 {[%clk 0:10:07]} 40... Kc7 {[%clk 0:05:48]} 41. Kd3
{[%clk 0:10:10]} 41... e5 {[%clk 0:04:23]} 42. f3 {[%clk 0:08:21]} 42... g5
{[%clk 0:03:37]} 43. dxe5 {[%clk 0:05:32]} 43... Nxe5+ {[%clk 0:04:02]} 44. Ke3
{[%clk 0:05:52]} 44... g6 {[%clk 0:04:02]} 45. Bd4 {[%clk 0:05:32]} 45... Nc4+
{[%clk 0:04:22]} 46. Kd3 {[%clk 0:05:59]} 46... Nxa3 {[%clk 0:04:28]} 47. b6+
{[%clk 0:05:39]} 47... Kc6 {[%clk 0:04:51]} 48. Bf6 {[%clk 0:03:48]} 48... Kxb6
{[%clk 0:05:10]} 49. Bxg5 {[%clk 0:03:58]} 49... Nb5 {[%clk 0:05:22]} 50. Bf6
{[%clk 0:04:01]} 50... Kc6 {[%clk 0:05:29]} 51. Ba1 {[%clk 0:03:48]} 51... Kd6
{[%clk 0:04:33]} 52. f4 {[%clk 0:04:03]} 52... Ke6 {[%clk 0:04:51]} 53. h4
{[%clk 0:04:17]} 53... Nd6 {[%clk 0:05:01]} 54. Kd4 {[%clk 0:04:31]} 54... a3
{[%clk 0:05:02]} 55. Kc5 {[%clk 0:04:35]} 55... Ne4+ {[%clk 0:05:20]} 56. Kb4
{[%clk 0:04:38]} 56... Nf2 {[%clk 0:05:43]} 57. f5+ {[%clk 0:03:54]} 57... gxf5
{[%clk 0:06:11]} 58. gxf5+ {[%clk 0:04:19]} 58... Kxf5 {[%clk 0:06:33]} 59. Kxa3
Ne4 {[%clk 0:06:56]} 60. Kb3 {[%clk 0:04:53]} 60... Kg4 {[%clk 0:06:24]} 61. Kc2
{[%clk 0:04:59]} 61... Kxh4 {[%clk 0:06:21]} 62. Kd3 {[%clk 0:05:20]} 62... Kg4
{[%clk 0:06:44]} 63. Kd4 {[%clk 0:05:43]} 63... h5 {[%clk 0:07:00]} 64. Kxd5
{[%clk 0:06:06]} 64... Ng5 {[%clk 0:06:54]} 65. Kd4 {[%clk 0:05:45]} 65... Kf3
{[%clk 0:05:44]} 66. Ke5 {[%clk 0:05:12]} 66... h4 {[%clk 0:06:09]} 67. Kf5
{[%clk 0:05:31]} 67... Nf7 {[%clk 0:05:31]} 68. Bd4 {[%clk 0:05:05]} 68... h3
{[%clk 0:05:56]} 69. Bg1 {[%clk 0:05:27]} 69... Kg2 {[%clk 0:06:22]} 70. Kg4
{[%clk 0:05:42]} 70... Ne5+ {[%clk 0:06:52]} 71. Kh4 {[%clk 0:05:55]} 71... Nf3+
{[%clk 0:07:20]} 0-1

[Variant "Standard"]
[Site "Europe Echecs"]

[Event "Championnat du monde jeunes U12F"]
[Date "2024.11.25"]
[White "Sabou, Stefania Theodora"]
[Black "Messali Anger, Ilyana"]
[WhiteElo "1736"]
[BlackElo "1687"]
[Round "10.17"]
[Result "1-0"]
[TimeControl "5400+30"]

1. c4 {[%clk 1:30:54]} 1... e6 {[%clk 1:30:45]} 2. d4 {[%clk 1:31:12]} 2... d5
{[%clk 1:30:51]} 3. e3 {[%clk 1:31:08]} 3... Nf6 {[%clk 1:30:15]} 4. Ne2 {[%clk
1:31:03]} 4... Bd6 {[%clk 1:20:02]} 5. Qc2 {[%clk 1:28:09]} 5... O-O {[%clk
1:17:30]} 6. g3 {[%clk 1:27:34]} 6... c6 {[%clk 1:14:36]} 7. Bg2 {[%clk
1:26:25]} 7... Nbd7 {[%clk 1:12:10]} 8. O-O {[%clk 1:23:45]} 8... b6 {[%clk
1:10:26]} 9. Nd2 {[%clk 1:17:29]} 9... Bb7 {[%clk 1:07:40]} 10. e4 {[%clk
1:16:44]} 10... dxe4 {[%clk 1:04:35]} 11. Nxe4 {[%clk 1:17:06]} 11... Nxe4
{[%clk 1:02:40]} 12. Bxe4 {[%clk 1:13:05]} 12... Nf6 {[%clk 0:57:08]} 13. Bg2
{[%clk 1:07:52]} 13... h6 {[%clk 0:56:05]} 14. f4 {[%clk 1:04:34]} 14... Qe7
{[%clk 0:53:09]} 15. f5 {[%clk 0:53:25]} 15... e5 {[%clk 0:42:18]} 16. Kh1
{[%clk 0:49:41]} 16... exd4 {[%clk 0:34:05]} 17. Nxd4 {[%clk 0:49:19]} 17... c5
{[%clk 0:29:16]} 18. Nf3 {[%clk 0:44:10]} 18... Rae8 {[%clk 0:23:42]} 19. Bd2
{[%clk 0:40:35]} 19... Be4 {[%clk 0:22:18]} 20. Qb3 {[%clk 0:35:41]} 20... Bxf5
{[%clk 0:21:37]} 21. Nh4 {[%clk 0:31:06]} 21... Be4 {[%clk 0:16:47]} 22. Rae1
{[%clk 0:30:46]} 22... Bxg2+ {[%clk 0:16:02]} 23. Kxg2 {[%clk 0:29:55]} 23...
Qb7+ {[%clk 0:14:55]} 24. Kg1 {[%clk 0:30:14]} 24... Qd7 {[%clk 0:13:27]} 25.
Rxe8 {[%clk 0:27:18]} 25... Nxe8 {[%clk 0:12:21]} 26. Qd3 {[%clk 0:27:21]} 26...
Qd8 {[%clk 0:07:05]} 27. Ng6 {[%clk 0:21:20]} 27... Nf6 {[%clk 0:01:24]} 28.
Nxf8 {[%clk 0:21:05]} 28... Kxf8 {[%clk 0:01:00]} 29. Bf4 {[%clk 0:20:14]} 29...
Be7 {[%clk 0:00:43]} 30. Qxd8+ {[%clk 0:20:24]} 30... Bxd8 {[%clk 0:01:06]} 31.
Rd1 {[%clk 0:19:14]} 31... Ke8 {[%clk 0:01:11]} 32. Re1+ {[%clk 0:18:57]} 32...
Kd7 {[%clk 0:01:22]} 33. Be5 {[%clk 0:17:55]} 33... Kc6 {[%clk 0:01:17]} 34.
Bxf6 {[%clk 0:17:56]} 34... Bxf6 {[%clk 0:01:39]} 35. b3 {[%clk 0:18:19]} 35...
a6 {[%clk 0:01:42]} 36. Re8 {[%clk 0:18:24]} 36... Bd4+ {[%clk 0:01:31]} 37. Kg2
{[%clk 0:18:43]} 37... f5 {[%clk 0:01:48]} 38. Re6+ {[%clk 0:18:51]} 38... Kb7
{[%clk 0:01:39]} 39. Kf3 {[%clk 0:19:02]} 39... a5 {[%clk 0:00:47]} 40. Kf4
{[%clk 0:19:03]} 40... Bf6 {[%clk 0:00:55]} 41. Kxf5 {[%clk 0:19:20]} 41... Bd4
{[%clk 0:00:55]} 42. g4 {[%clk 0:19:26]} 42... Kc7 {[%clk 0:01:03]} 43. h4
{[%clk 0:19:28]} 43... Bf2 {[%clk 0:00:49]} 44. h5 {[%clk 0:19:18]} 44... Bd4
{[%clk 0:01:03]} 45. g5 {[%clk 0:19:27]} 45... Be3 {[%clk 0:00:56]} 46. Rxe3
{[%clk 0:19:44]} 46... hxg5 {[%clk 0:01:12]} 47. Kxg5 {[%clk 0:20:07]} 47... Kd6
{[%clk 0:01:22]} 48. Kg6 {[%clk 0:20:32]} 48... Kc6 {[%clk 0:01:41]} 49. Kxg7
{[%clk 0:20:57]} 49... Kd6 {[%clk 0:02:01]} 50. h6 {[%clk 0:21:21]} 50... Kc6
{[%clk 0:02:17]} 51. h7 {[%clk 0:21:45]} 51... Kd6 {[%clk 0:02:40]} 52. h8=Q
{[%clk 0:22:08]} 52... Kc6 {[%clk 0:03:02]} 53. Qa8+ {[%clk 0:22:17]} 53... Kd7
{[%clk 0:03:11]} 54. Qd5+ {[%clk 0:22:37]} 54... Kc7 {[%clk 0:03:32]} 55. Re7+
{[%clk 0:22:59]} 55... Kc8 {[%clk 0:03:45]} 56. Qa8# {[%clk 0:23:22]} 1-0

[Variant "Standard"]
[Site "Europe Echecs"]

[Event "Championnat du monde jeunes U12F"]
[Date "2024.11.25"]
[White "Xia, Miaoyan"]
[Black "Harutyunyan, Gabriela"]
[WhiteElo "1711"]
[BlackElo "1730"]
[Round "10.18"]
[Result "0-1"]
[TimeControl "5400+30"]

1. e4 {[%clk 1:30:57]} 1... c5 {[%clk 1:30:35]} 2. Nf3 {[%clk 1:31:15]} 2... Nc6
{[%clk 1:30:59]} 3. d4 {[%clk 1:31:36]} 3... cxd4 {[%clk 1:31:23]} 4. Nxd4
{[%clk 1:31:58]} 4... e5 {[%clk 1:31:35]} 5. Nb5 {[%clk 1:31:20]} 5... a6 {[%clk
1:31:55]} 6. Nd6+ {[%clk 1:31:03]} 6... Bxd6 {[%clk 1:31:46]} 7. Qxd6 {[%clk
1:31:16]} 7... Qe7 {[%clk 1:31:51]} 8. Qd1 {[%clk 1:30:27]} 8... Nf6 {[%clk
1:31:58]} 9. Nc3 {[%clk 1:30:01]} 9... d6 {[%clk 1:32:17]} 10. Bg5 {[%clk
1:24:56]} 10... Be6 {[%clk 1:32:34]} 11. Nd5 {[%clk 1:22:24]} 11... Bxd5 {[%clk
1:30:35]} 12. exd5 {[%clk 1:22:35]} 12... Nb8 {[%clk 1:27:53]} 13. Bd3 {[%clk
1:20:41]} 13... Nbd7 {[%clk 1:25:47]} 14. Bf5 {[%clk 1:16:57]} 14... Nb6 {[%clk
1:21:17]} 15. Be4 {[%clk 0:56:37]} 15... h6 {[%clk 1:20:36]} 16. Bxf6 {[%clk
0:56:56]} 16... Qxf6 {[%clk 1:21:01]} 17. O-O {[%clk 0:56:40]} 17... O-O {[%clk
1:18:48]} 18. b3 {[%clk 0:53:02]} 18... Qg5 {[%clk 1:14:34]} 19. f4 {[%clk
0:45:44]} 19... exf4 {[%clk 1:07:57]} 20. Qd4 {[%clk 0:45:26]} 20... Nd7 {[%clk
1:05:21]} 21. Rxf4 {[%clk 0:38:11]} 21... Rae8 {[%clk 1:00:16]} 22. Bf5 {[%clk
0:33:41]} 22... Nf6 {[%clk 0:57:56]} 23. Raf1 {[%clk 0:29:51]} 23... Re2 {[%clk
0:57:38]} 24. g3 {[%clk 0:24:35]} 24... Rfe8 {[%clk 0:52:36]} 25. Bd3 {[%clk
0:18:32]} 25... R2e3 {[%clk 0:45:21]} 26. Kg2 {[%clk 0:09:34]} 26... Qe5 {[%clk
0:33:39]} 27. Qxe5 {[%clk 0:05:02]} 27... R8xe5 {[%clk 0:31:03]} 28. Kg1 {[%clk
0:04:26]} 28... Rxd5 {[%clk 0:30:27]} 29. Rc4 {[%clk 0:04:29]} 29... Rc5 {[%clk
0:27:24]} 30. Rd4 {[%clk 0:03:57]} 30... d5 {[%clk 0:26:58]} 31. Rb4 {[%clk
0:04:09]} 31... Rc7 {[%clk 0:26:34]} 32. Rff4 {[%clk 0:03:49]} 32... Kf8 {[%clk
0:25:14]} 33. Kf2 {[%clk 0:04:03]} 33... Re6 {[%clk 0:24:48]} 34. c4 {[%clk
0:03:40]} 34... Ke7 {[%clk 0:23:25]} 35. Rd4 {[%clk 0:03:40]} 35... dxc4 {[%clk
0:22:27]} 36. Rdxc4 {[%clk 0:03:54]} 36... Rxc4 {[%clk 0:22:19]} 37. Rxb7+
{[%clk 0:03:54]} 37... Nd7 {[%clk 0:21:47]} 38. Bxc4 {[%clk 0:04:15]} 38... Rd6
{[%clk 0:22:09]} 39. Ra7 {[%clk 0:04:15]} 39... Rd2+ {[%clk 0:21:39]} 40. Ke3
{[%clk 0:04:39]} 40... Rxh2 {[%clk 0:21:49]} 41. Bxf7 {[%clk 0:03:45]} 41...
Rxa2 {[%clk 0:21:19]} 42. Bc4 {[%clk 0:04:08]} 42... Rg2 {[%clk 0:21:01]} 43.
Kf3 {[%clk 0:04:11]} 43... Rc2 {[%clk 0:20:44]} 44. Bxa6 {[%clk 0:03:24]} 44...
Rc3+ {[%clk 0:20:55]} 45. Ke4 {[%clk 0:03:40]} 45... Kd6 {[%clk 0:21:01]} 46.
Bc4 {[%clk 0:03:26]} 46... Rxg3 {[%clk 0:18:47]} 47. Kf4 {[%clk 0:02:47]} 47...
Rg1 {[%clk 0:18:29]} 48. b4 {[%clk 0:02:46]} 48... Nf6 {[%clk 0:15:03]} 49. Ra6+
{[%clk 0:02:30]} 49... Kc7 {[%clk 0:15:24]} 50. Bf7 {[%clk 0:02:13]} 50... Rg4+
{[%clk 0:15:31]} 51. Kf5 {[%clk 0:02:07]} 51... Rxb4 {[%clk 0:14:58]} 52. Bg6
{[%clk 0:02:08]} 52... Kb7 {[%clk 0:13:52]} 53. Re6 {[%clk 0:01:59]} 53... Nd5
{[%clk 0:10:17]} 54. Ke5 {[%clk 0:01:56]} 54... Nc7 {[%clk 0:09:55]} 55. Re7
{[%clk 0:02:08]} 55... Rb5+ {[%clk 0:10:13]} 56. Ke4 {[%clk 0:02:02]} 56... Kc6
{[%clk 0:08:12]} 57. Rxg7 {[%clk 0:02:12]} 57... Rb4+ {[%clk 0:07:17]} 58. Kf3
{[%clk 0:01:52]} 58... Ne6 {[%clk 0:07:20]} 59. Be8+ {[%clk 0:01:47]} 59... Kc5
{[%clk 0:05:56]} 60. Rg6 {[%clk 0:01:58]} 60... Rb6 {[%clk 0:05:53]} 61. Kf2
{[%clk 0:02:08]} 61... Rb2+ {[%clk 0:05:59]} 62. Kg1 {[%clk 0:02:14]} 62... Nf4
{[%clk 0:05:25]} 63. Rxh6 {[%clk 0:01:47]} 63... Kd4 {[%clk 0:05:40]} 64. Rd6+
{[%clk 0:01:30]} 64... Ke3 {[%clk 0:06:00]} 65. Bd7 {[%clk 0:00:58]} 65... Kf3
{[%clk 0:06:16]} 66. Rd1 {[%clk 0:00:56]} 66... Kg3 {[%clk 0:06:20]} 67. Ra1
{[%clk 0:01:02]} 67... Rg2+ {[%clk 0:06:11]} 68. Kf1 {[%clk 0:01:09]} 68... Rf2+
{[%clk 0:06:36]} 69. Ke1 {[%clk 0:01:06]} 69... Nd3+ {[%clk 0:07:02]} 70. Kd1
{[%clk 0:01:16]} 70... Rf1+ {[%clk 0:07:30]} 71. Kd2 {[%clk 0:01:33]} 71... Rxa1
{[%clk 0:07:56]} 72. Kxd3 {[%clk 0:01:50]} 72... Rd1+ {[%clk 0:08:22]} 0-1

[Variant "Standard"]
[Site "Europe Echecs"]